Cogmind - Beta 12 @@@ ROGUE MODE // 2023.10.02 @ 14:48:41 Player: Figgis Result: Self-destructed Performance ------------- Evolutions (1) 500 Regions Visited (3) 600 Robots Destroyed (30) 150 Value Destroyed (616) 616 Prototype IDs (1) 20 Alien Tech Used (0) 0 Bonus (96) 96 TOTAL SCORE: 1982 Bonus ------- Follower Combat Kills 96 Cogmind --------- Core Integrity 385/400 Matter 2/300 Energy 250/250 System Corruption 0% Temperature Cool (6) Movement Walking (120) Location -9/Materials Parts ------- > --- POWER (1) -------- Ion Engine > --- PROPULSION (3) --- Aluminum Leg Aluminum Leg Aluminum Leg > --- UTILITY (3) ------ Small Storage Unit Sensor Array Signal Interpreter > --- WEAPON (2) ------- Flak Cannon Rocket Launcher > --- INVENTORY (8) ---- Aluminum Leg Carbon-fiber Leg Huge Storage Unit Thief Drone Bay (3/3) Assault Rifle Rocket Launcher Peak State ------------ > --- POWER ------------ Ion Engine > --- PROPULSION ------- Aluminum Leg Aluminum Leg > --- UTILITY ---------- Small Storage Unit Thief Drone Bay > --- WEAPON ----------- Assault Rifle Light Assault Rifle > --- INVENTORY -------- Aluminum Leg Hover Unit Huge Storage Unit Sensor Array Signal Interpreter Improved Terrain Scanner Rocket Launcher Rocket Launcher [Rating: 14] Favorites ----------- Power Ion Engine Engine Ion Engine Propulsion Aluminum Leg Leg Aluminum Leg Hover Unit Hover Unit Utility Small Storage Unit Device Sensor Array Storage Small Storage Unit Processor Signal Interpreter Weapon Assault Rifle Ballistic Gun Assault Rifle Ballistic Cannon Light Cannon Launcher Rocket Launcher Build | -11 -10 -10 -9 ------- Run | Jun Mat Min Mat Slots Evolved 2 | . . . 2 Power . | . . . . Propulsion 1 | . . . 1 Utility 1 | . . . 1 Weapon . | . . . . Parts Attached 34 | 7 15 8 4 Power 3 | 1 1 1 . Engine 3 | 1 1 1 . Core . | . . . . Reactor . | . . . . Propulsion 14 | 2 9 2 1 Treads . | . . . . Leg 9 | 2 4 2 1 Wheel . | . . . . Hover 5 | . 5 . . Flight . | . . . . Utility 8 | 2 1 2 3 Device 4 | 1 1 2 . Storage 3 | 1 . . 2 Processor 1 | . . . 1 Hackware . | . . . . Protection . | . . . . Artifact . | . . . . Weapon 9 | 2 4 3 . Energy Gun . | . . . . Energy Cannon . | . . . . Ballistic Gun 4 | 2 2 . . Ballistic Cannon 2 | . 1 1 . Launcher 3 | . 1 2 . Special Weapon . | . . . . Impact Weapon . | . . . . Slashing Weapon . | . . . . Piercing Weapon . | . . . . Special Melee Weapon . | . . . . Unidentified Prototypes 1 | . . 1 . Parts Lost 4 | . 4 . . Power 1 | . 1 . . Propulsion 2 | . 2 . . Utility . | . . . . Weapon 1 | . 1 . . Highest Loss Streak 2 | . 2 . . To Critical Strikes . | . . . . Average Slot Usage (%) 99 | . 99 100 100 Engine 13 | . 14 14 11 Leg 23 | . 18 28 33 Hover 4 | . 9 . . Device 13 | . 14 14 11 Storage 13 | . 14 14 11 Ballistic Gun 17 | . 17 18 . Ballistic Cannon 8 | . 9 6 11 Launcher 2 | . . 2 11 Naked Turns . | . . . . Heaviest Build 21 | 14 18 21 21 Greatest Support 30 | 20 20 20 30 Greatest Overweight (x) 4 | 4 2 1 . Average Overweight (x) . | . . . . Largest Inventory Capacity 25 | 8 8 8 25 Average Capacity 8 | 7 8 8 8 Most Carried 8 | 5 8 8 7 Average Carried 6 | 1 5 7 6 Final Capacity 8 | 8 8 8 8 Final Carried 8 | 2 8 8 6 Class Distribution -------------------- 96% | Mutant 3% | Scavenger-Mutant Dominant Class ---------------- Mutant | -10/Materials Mutant | -10/Mines Scavenger-Mutant | -9/Materials Resources | -11 -10 -10 -9 ----------- Run | Jun Mat Min Mat Matter Collected 975 | 248 329 360 38 Remotely . | . . . . Salvage Created 545 | 40 290 177 38 Parts 56 | 4 29 18 5 Haulers Intercepted . | . . . . Recyclers Shooed 2 | . 1 1 . Parts Field Recycled . | . . . . Retrieved Matter . | . . . . Parts Self-Destructed . | . . . . Prevented . | . . . . Kills | -11 -10 -10 -9 ------- Run | Jun Mat Min Mat Combat Hostiles Destroyed 21 | . 11 9 1 Guns 12 | . 7 5 . Cannons 5 | . 2 2 1 AOE 4 | . 2 2 . Classes Destroyed 6 | 1 4 . 1 Worker 3 | . 2 1 . Tunneler 3 | 2 . 1 . Watcher 3 | . 3 . . Swarmer 11 | . 6 5 . Grunt 9 | . 5 4 . Sentry 1 | . . . 1 Best Kill Streak 4 | 2 3 4 1 Combat Bots Only 3 | . 3 3 1 Max Kills in Single Turn 1 | 1 1 1 1 Gunslinging . | . . . . Exploded 1 | . 1 1 . Melee . | . . . . Uniques/NPCs Destroyed . | . . . . Combat | -11 -10 -10 -9 -------- Run | Jun Mat Min Mat Damage Taken 1124 | . 725 341 58 Core 196 | . 130 51 15 Absorbed by Shields . | . . . . Regen/Repaired (Parts) 18 | . 18 . . Core Remaining (%) 63 | 100 . 27 . Volleys Fired 125 | 9 58 53 5 Largest 2 | 2 2 2 1 Hottest 68 | 40 68 64 44 Shots Fired 219 | 18 107 89 5 Gun 148 | 18 78 52 . Cannon 59 | . 26 29 4 Launcher 12 | . 3 8 1 Special . | . . . . Kinetic 207 | 18 104 81 4 Thermal . | . . . . Explosive 12 | . 3 8 1 Electromagnetic . | . . . . Robot Hit Streak 14 | 3 14 5 9 Robot Miss Streak 5 | 2 5 5 5 Penetration Max . | . . . . Secondary Targets 1 | . . 1 . Max Gunslinging Chain 1 | . . 1 . Shots Hit Robots 95 | 8 55 28 4 Core Hits 50 | 4 25 18 3 Critical Kills . | . . . . Critical Parts Destroyed . | . . . . Critical Strikes . | . . . . Melee Attacks . | . . . . Impact . | . . . . Slashing . | . . . . Piercing . | . . . . Sneak Attacks . | . . . . Combat Hostiles . | . . . . Follow-up Attacks . | . . . . Damage Inflicted 1758 | 86 928 645 99 Guns 667 | 86 431 150 . Cannons 417 | . 227 125 65 Explosions 655 | . 260 361 34 Melee . | . . . . Ramming 19 | . 10 9 . Kinetic 1084 | 86 658 275 65 Thermal . | . . . . Explosive 655 | . 260 361 34 Electromagnetic . | . . . . Impact . | . . . . Slashing . | . . . . Piercing . | . . . . Highest Corruption . | . . . . Average Corruption . | . . . . Corruption Purged . | . . . . Corruption Blocked . | . . . . Overload Shots . | . . . . Overflow Damage 55 | . 17 38 . Projectiles . | . . . . Explosions 55 | . 17 38 . Melee . | . . . . Knockbacks 10 | . 6 3 1 Impact . | . . . . Kinetic 9 | . 5 3 1 Secondary 1 | . 1 . . Self-Inflicted Damage 109 | . 44 65 . Shots 3 | . 1 2 . Rammed . | . . . . Targets Rammed 3 | . 2 1 . Kicked 3 | . 2 1 . Crushed . | . . . . Highest Temperature 60 | . 42 60 8 Average Temperature 18 | . 11 24 6 Received Heat Transfer 234 | . 168 51 15 Siege Activations . | . . . . Robots Corrupted . | . . . . Combat Hostiles . | . . . . Parts Fried . | . . . . Impact Corruptions . | . . . . Robots Melted . | . . . . Combat Hostiles . | . . . . Parts Melted . | . . . . Heat Transferred . | . . . . Parts Sabotaged . | . . . . Parts Stolen . | . . . . Parts Stripped . | . . . . Power Chain Reactions . | . . . . Missiles Intercepted . | . . . . Alert | -11 -10 -10 -9 ------- Run | Jun Mat Min Mat Peak Influence 253 | 10 158 253 163 Initial 90 | . 6 17 90 Average 68 | 2 46 96 120 Maximum Alert Level 1 | . . 1 . Low Security (%) 94 | 100 100 86 100 Level 1 5 | . . 13 . Level 2 . | . . . . Level 3 . | . . . . Level 4 . | . . . . Level 5 . | . . . . High Security . | . . . . Max Security . | . . . . Squads Dispatched 2 | . 1 1 . Investigation 2 | . 1 1 . Extermination . | . . . . Reinforcement . | . . . . Assault . | . . . . Garrison . | . . . . Intercept . | . . . . Searches Triggered . | . . . . Construction Impeded . | . . . . Haulers Reinforced . | . . . . Active Scanning Responses . | . . . . Cargo Convoy Interrupts . | . . . . Stealth | -11 -10 -10 -9 --------- Run | Jun Mat Min Mat Distress Signals 2 | . 1 . 1 Communications Jammed . | . . . . Distress Signals . | . . . . Times Spotted 41 | . 20 16 5 Peak Tracking Total 5 | . 4 3 5 Tactical Retreats 1 | . 1 . . Traps | -11 -10 -10 -9 ------- Run | Jun Mat Min Mat Traps Triggered 1 | . 1 . . Indirectly . | . . . . Trap Hack Attempts . | . . . . Triggered . | . . . . Disarmed . | . . . . Reprogrammed . | . . . . Reused . | . . . . Traps Extracted . | . . . . Installed . | . . . . Triggered . | . . . . Machines | -11 -10 -10 -9 ---------- Run | Jun Mat Min Mat Machines Disabled 7 | . 1 6 . Max in Single Turn 2 | . 1 2 . Machines Repaired . | . . . . Machines Sabotaged . | . . . . Overloaded Fab Kills . | . . . . Hacking | -11 -10 -10 -9 --------- Run | Jun Mat Min Mat Machines Accessed 13 | . 10 2 1 Terminals 8 | . 7 . 1 Fabricators . | . . . . Repair Stations 1 | . 1 . . Recycling Units 2 | . 2 . . Scanalyzers . | . . . . Garrison Access . | . . . . Total Hacks 37 | . 27 2 8 Successful 20 | . 14 2 4 Failed 17 | . 13 . 4 Catastrophic . | . . . . Database Lockouts . | . . . . Manual . | . . . . Terminals 25 | . 17 . 8 Fabricators . | . . . . Repair Stations 5 | . 5 . . Recycling Units 5 | . 5 . . Scanalyzers . | . . . . Garrison Access . | . . . . Terminal Hacks 13 | . 7 2 4 Record 1 | . 1 . . Open Door 2 | . . 2 . Branch Access Points 1 | . 1 . . Scanalyzer Index 1 | . 1 . . Alert Level 1 | . 1 . . Unreport Threat 1 | . 1 . . Dispatch Records 1 | . . . 1 Reinforcement Status 2 | . 1 . 1 Hauler Manifests 2 | . 1 . 1 Zone Layout 1 | . . . 1 Fabricator Hacks . | . . . . Repair Station Hacks 4 | . 4 . . Scan Component 3 | . 3 . . Repair 1 | . 1 . . Recycling Unit Hacks 3 | . 3 . . Report Inventory 2 | . 2 . . Retrieve Components 1 | . 1 . . Scanalyzer . | . . . . Garrison Access Hacks . | . . . . Unauthorized Hacks . | . . . . Terminals . | . . . . Fabricators . | . . . . Repair Stations . | . . . . Recycling Units . | . . . . Scanalyzers . | . . . . Garrison Access . | . . . . Data Cores Recovered . | . . . . Used . | . . . . Hacking Detections 10 | . 9 . 1 Full Trace Events 1 | . 1 . . Feedback Events . | . . . . Feedback Blocked . | . . . . Robot Schematics Acquired . | . . . . Robots Built . | . . . . Authchips . | . . . . Time . | . . . . Total Robot Build Rating . | . . . . Part Schematics Acquired . | . . . . Parts Built . | . . . . Authchips . | . . . . Time . | . . . . Total Part Build Rating . | . . . . Parts Repaired 1 | . 1 . . Time 26 | . 26 . . Parts Recycled . | . . . . Recycled Matter . | . . . . Retrieved Matter . | . . . . Retrieved Components 8 | . 8 . . Parts Scanalyzed . | . . . . Part Schematics Acquired . | . . . . Parts Damaged . | . . . . Bothacking | -11 -10 -10 -9 ------------ Run | Jun Mat Min Mat Used RIF Installer . | . . . . Robots Hacked . | . . . . Non-combat . | . . . . Combat . | . . . . Robot Hacks Applied . | . . . . Relay Couplers Released . | . . . . Fabnet Peak Effective % . | . . . . Robots Rewired . | . . . . Allies Hacked . | . . . . Hacks Repelled . | . . . . Allies | -11 -10 -10 -9 -------- Run | Jun Mat Min Mat Total Allies 3 | . . 3 . Largest Group 3 | . . 3 . Highest-Rated Group 40 | . . 40 . Highest-Rated Ally 16 | . . 16 . Total Orders . | . . . . Ally Attacks 30 | . . 30 . Total Damage 298 | . . 298 . Kills 7 | . . 7 . Allies Corrupted . | . . . . Allies Melted . | . . . . Intel | -11 -10 -10 -9 ------- Run | Jun Mat Min Mat Robot Analysis Total . | . . . . Derelict Logs Recovered 3 | . . 3 . Drone Launches . | . . . . Drone Recoveries . | . . . . Exploration | -11 -10 -10 -9 ------------- Run | Jun Mat Min Mat Turns Passed 2605 | 129 1289 1106 81 Spaces Moved 1620 | 64 783 718 55 Core 15 | 15 . . . Treads . | . . . . Legs 1391 | 49 569 718 55 Wheels . | . . . . Hover 214 | . 214 . . Flight . | . . . . Fastest Speed 50 | 50 56 120 120 Average Speed 126 | 137 121 131 120 Slowest Speed 250 | 250 190 190 120 Overloaded Moves . | . . . . Propulsion Burnouts . | . . . . Robots Hopped . | . . . . Cave-ins Triggered . | . . . . Exploration Rate (%) 51 | 5 95 96 8 Regions Visited 3 Branch Regions 1 Pre-discovered Areas 1 | . . 1 . Known Exits Taken 1 | . 1 . . Unknown Exits Taken 2 | 1 . 1 . Scrap Searched 1 | . . 1 . Spaces Dug 2 | . . 2 . Terrain Destroyed 89 | . 27 50 12 Melee . | . . . . Projectile . | . . . . AOE 89 | . 27 50 12 Terrain Rammed . | . . . . Walls Destroyed . | . . . . Machines Disabled . | . . . . Actions | -11 -10 -10 -9 --------- Run | Jun Mat Min Mat Total 1964 | 88 1013 799 64 Wait 146 | . 141 5 . Move 1617 | 63 782 717 55 Hop . | . . . . Pick Up 27 | 9 12 6 . Fast Attach . | . . . . Attach 15 | 7 5 1 2 Detach . | . . . . Swap 19 | . 10 7 2 Drop 12 | . 3 9 . Fire 125 | 9 58 53 5 Melee . | . . . . Ram . | . . . . Kick 3 | . 2 1 . Crush . | . . . . Escape Stasis . | . . . . Rewire . | . . . . Trap . | . . . . Miscellaneous . | . . . . Route ------- -11/Junkyard -10/Materials (discovered 4 exits: *Mat x3 / *Min) -10/Mines -9/Materials History --------- Turn | Location | Event 46 | -11/Junkyard | Discovered new exit (range 15) 130 | -11/Junkyard | Entered Materials 301 | -10/Materials | Build established: Mutant 325 | -10/Materials | Discovered new exit (range 15) 589 | -10/Materials | Repaired Hover Unit 793 | -10/Materials | Identified exit to Mines 880 | -10/Materials | Discovered new exit (range 4) 1060 | -10/Materials | Discovered new exit (range 5) 1106 | -10/Materials | Core integrity fell below 50% 1419 | -10/Materials | Entered Mines 1431 | -10/Mines | Learned Materials emergency access door positions 1620 | -10/Mines | Assisted by bots powering up and referring to "LRC-V3" 1720 | -10/Mines | Discovered new exit (range 11) 1749 | -10/Mines | Found the Drone Emporium 1759 | -10/Mines | Found Prototype Device 1760 | -10/Mines | Identified Thief Drone Bay 2015 | -10/Mines | Met a Derelict shopkeep closing up shop 2196 | -10/Mines | Received a Rocket Launcher from a helpful Derelict 2230 | -10/Mines | Excavation squad dispatched 2230 | -10/Mines | A large section of the Mines collapsed 2525 | -10/Mines | Entered Materials 2525 | -9/Materials | Evolved 2 slots: Propulsion x1, Utility x1 2606 | -9/Materials | Self-destructed Last Messages --------------- A-02 Transporter 5x Shotgun A-02 Transporter 6x Cld. Ion Engine A-02 Transporter 6x Lgt. EM Pulse Cannon >>Layout(Zone) Retrieving Zone 8C layout... Downloaded map data. >>Enumerate(Squads) Retrieving dispatch records... Found 25 active squads: 9x Security 5x Surveillance 5x Patrol 6x Transport 02575_ R-06 Scavenger collects Lgt. Armor Plating. 02598_ W-16 Scout sends out distress signal. 02601_ W-16 Scout knocked back. 02602_ K-01 Serf collects debris. Map ----- +----------------------------------------------------+ | | | | | | | | | | | | | | | ?????????????????????????????????????????????????? | | ??????????????????????????????###????????????????? | | ?????????????????????????????##=########?????????? | | ?????????????????????????????#! [ #?????????? | | ????????????????#######??????# != #?????????? | | ?????????######## ######## == """ #?????????? | | ?????????# # = """ #?????????? | | ?????????# + """ #?#######?? | | ?????????# # #?# ?? | | ?????????######## ######## #?# """?? | | ????????????????## ##??????# "T" #?# """?? | | ?????????????????# #???????###########?# """?? | | ?????????????????# #???????????????????# """?? | | ?????????????????# #???????????????????# """?? | | ?????????????????# #???????????????????# """?? | | ?????????????????# #???????????????????# """?? | | ????????????????## ##???#######????????# ?? | | ??????????????### #### ##############+#?? | | ??????? u r @ ?? | | ?????? w ?? | | ??????? k ?? | | ???????########## g ##### ##### #####+#?? | | ????????????????###+######### ## ## ?? | | ????????????????? #??#Y ## ## ?? | | ????????????????# #??# " " ## ## ?? | | ????????????????# #??# "R" ## ## ?? | | ????????????????#???????????????""? ?????????????? | | ????????????????????????????????? ???????????????? | | ?????????????????????????????????????????????????? | | ?????????????????????????????????????????????????? | | ?????????????????????????????????????????????????? | | ?????????????????????????????????????????????????? | | ?????????????????????????????????????????????????? | | ?????????????????????????????????????????????????? | | ?????????????????????????????????????????????????? | | ?????????????????????????????????????????????????? | | ?????????????????????????????????????????????????? | | ?????????????????????????????????????????????????? | | ?????????????????????????????????????????????????? | | ?????????????????????????????????????????????????? | | ?????????????????????????????????????????????????? | | ?????????????????????????????????????????????????? | | ?????????????????????????????????????????????????? | +----------------------------------------------------+ Best States ------------- Heat Dissipation 28 Energy Generation 10 Energy Capacity 250 Matter Stores 300 Matter Capacity 300 Sight Range 16 Robot Scan Range 14 Terrain Scan Range 16 Terrain Scan Density 10 Evasion (%) 55 Item Schematics ----------------- None Robot Schematics ------------------ None Fabricated ------------ Nothing Alien Tech Used ----------------- None Achievements -------------- None Challenges ------------ None Game ------ Seed CommGammaBeam Manual? 0 Play Time 00:21:57 Cumulative 13.0 hours Start 2023.10.02 @ 14:26:12 End 2023.10.02 @ 14:48:41 Sessions 1 Manual Loads 0 Difficulty Rogue Special Mode None Game No. 29 Rogue 26 Adventurer 3 Explorer 0 Win Type - Total 0 Types 0/0/0/0/0/0/0/0/0 Lore% 13 Gallery% 24 Achievement% 19 Wizard Run 0 Options --------- ASCII 0 Keyboard 0 Movement Mouse Keybinds 0 Fullscreen 2 Font 18/SmallcapsGlow Map View 76x50 Tactical HUD 1 Map Filters NONE Filters NONE Steam 1 RUN: 34019e45-1e56-47fb-b10d-61a2d8cb8915